Cogmind - Beta 17 @@@ ROGUE MODE // 2026.07.25 @ 14:08:40 Player: DaddyWalrus Result: Destroyed by S-43 Plague with Heavy Machine Gun Performance ------------- Evolutions (8) 4000 Regions Visited (23) 4600 Robots Destroyed (291) 1455 Value Destroyed (16597) 16597 Prototype IDs (75) 1500 Alien Tech Used (4) 800 Bonus (13333) 13333 TOTAL SCORE: 42285 Bonus ------- Triggered High Security 500 High Alert Combat Kills 4706 Follower Combat Kills 631 Hunted by Unchained 500 Aligned with FarCom 300 Met Data Miner 300 Met Zhirov 300 A7 Reached Mainframe 300 Met R17 at Cetus 500 Found Hidden Lab 3000 Met R17 at Research 2000 Scanned by Researcher 500 Pursued by Intercept 500 Friendly Fire -704 Cogmind --------- Core Integrity 0/1450 Matter 295/300 Energy 90/100 System Corruption 39% Temperature Cool (0) Movement Hovering (60) Location -2/Research Parts ------- > --- POWER (1) -------- (None) > --- PROPULSION (8) --- Combat Linear Gravjet > --- UTILITY (11) ----- (None) > --- WEAPON (4) ------- (None) > --- INVENTORY (5) ---- XL Autogun Array Peak State ------------ > --- POWER ------------ Quantum Reactor > --- PROPULSION ------- Biometal Heavy Treads Biometal Heavy Treads Biometal Heavy Treads Advanced Heavy Siege Treads > --- UTILITY ---------- Huge Storage Unit Enhanced Optical Array Improved Targeting Computer Advanced Targeting Computer Experimental Targeting Computer Experimental Targeting Computer Advanced Target Analyzer Centrium Medium Armor Plating Heavy Regenerative Plating Improved Dynamic Insulation System > --- WEAPON ----------- Heavy Hardcell Cannon Enhanced Hardcell Cannon Hellfire Missile Launcher > --- INVENTORY -------- Light Quantum Reactor Improved Heavy Siege Treads Experimental Cooling System Experimental Energy Well Advanced Matter Compressor Advanced Signal Interpreter Quantum Capacitor Improved Thermal Shield Long-range Tractor Beam Drone Bay Compact HERF Cannon Enhanced Nova Cannon Warp Cannon XL Autogun Array Heavy Hardcell Cannon Enhanced Hardcell Cannon Gamma Bomb Array Guided Remote Datajack [Rating: 197] Favorites ----------- Power Quantum Reactor Engine Improved Deuterium Engine Power Core Light Fission Core Reactor Quantum Reactor Propulsion Light Treads Treads Light Treads Leg Aluminum Leg Wheel Compact Wheel Hover Unit Gravmag Array Utility Improved Targeting Computer Device Precision Matter Filter Storage Huge Storage Unit Processor Improved Targeting Computer Hackware Authchip [Processor] Protection Centrium Medium Armor Plating Weapon Advanced KE Penetrator Energy Gun Gatling Laser Energy Cannon Enhanced Nova Cannon Ballistic Gun Advanced KE Penetrator Ballistic Cannon Heavy Hardcell Cannon Launcher Long-range Missile Launcher Special Weapon Guided Remote Datajack Impact Weapon Power Maul Slashing Weapon Scythe Piercing Weapon Heavy Pick Build | -11 -10 -10 -10 -9 -8 -7 -7 -7 -7 -6 -6 -6 -6 -5 -4 -4 -4 -4 -3 -3 -3 -3 -2 ------- Run | Yrd Mat Min Exi Min Mat Fac Low Low Dat Pro Fac Ext Cet Fac Fac Upp Upp Zhi Pro Res Arm Lab Res Slots Evolved 16 | . . . . . 4 2 . . . . 2 . . 2 2 . . . . 2 . . 2 Power . | . . . . . . . . . . . . . . . . . . . . . . . . Propulsion 5 | . . . . . 2 . . . . . 1 . . 1 . . . . . . . . 1 Utility 9 | . . . . . 1 1 . . . . 1 . . 1 2 . . . . 2 . . 1 Weapon 2 | . . . . . 1 1 . . . . . . . . . . . . . . . . . Parts Attached 209 | 6 5 1 . 2 14 13 1 1 . 7 30 23 14 6 3 2 1 7 1 12 19 8 33 Power 21 | 1 . . . 1 2 2 . . . 1 3 2 3 1 . . . 1 . . . . 4 Engine 4 | 1 . . . . . 2 . . . . . 1 . . . . . . . . . . . Core 9 | . . . . 1 2 . . . . 1 3 1 1 . . . . . . . . . . Reactor 8 | . . . . . . . . . . . . . 2 1 . . . 1 . . . . 4 Propulsion 49 | 2 2 . . 1 4 . . . . . 9 8 4 1 . . . 2 . 1 6 . 9 Treads 35 | . 2 . . . . . . . . . 5 8 4 1 . . . 1 . 1 6 . 7 Leg 9 | . . . . 1 4 . . . . . 3 . . . . . . 1 . . . . . Wheel 2 | 2 . . . . . . . . . . . . . . . . . . . . . . . Hover 2 | . . . . . . . . . . . 1 . . . . . . . . . . . 1 Flight 1 | . . . . . . . . . . . . . . . . . . . . . . . 1 Utility 76 | 2 1 . . . 4 4 . . . 4 10 8 2 4 3 1 . 4 . 9 6 3 11 Device 30 | 1 . . . . 2 . . . . 1 6 3 . 2 2 . . 1 . 3 2 1 6 Storage 10 | 1 1 . . . 1 . . . . . 1 1 . 1 . . . 2 . 1 . 1 . Processor 13 | . . . . . . 1 . . . . 1 1 . . 1 1 . . . 4 2 . 2 Hackware 1 | . . . . . . . . . . . . . . . . . . . . . 1 . . Protection 22 | . . . . . 1 3 . . . 3 2 3 2 1 . . . 1 . 1 1 1 3 Artifact . | . . . . . . . . . . . . . . . . . . . . . . . . Weapon 63 | 1 2 1 . . 4 7 1 1 . 2 8 5 5 . . 1 1 . 1 2 7 5 9 Energy Gun 12 | . 2 . . . 1 2 . 1 . . 1 . 1 . . . . . . . . 2 2 Energy Cannon 3 | . . . . . . . . . . . . . . . . . . . . . . 1 2 Ballistic Gun 30 | 1 . 1 . . 1 4 . . . 2 7 4 4 . . . 1 . . 2 3 . . Ballistic Cannon 7 | . . . . . . . . . . . . . . . . . . . . . 3 1 3 Launcher 5 | . . . . . . . 1 . . . . 1 . . . 1 . . . . . . 2 Special Weapon 1 | . . . . . . . . . . . . . . . . . . . . . . 1 . Impact Weapon 2 | . . . . . . 1 . . . . . . . . . . . . 1 . . . . Slashing Weapon 2 | . . . . . 2 . . . . . . . . . . . . . . . . . . Piercing Weapon 1 | . . . . . . . . . . . . . . . . . . . . . 1 . . Special Melee Weapon . | . . . . . . . . . . . . . . . . . . . . . . . . Unidentified Prototypes 30 | . . . . . 1 . . . . . 1 . 4 1 . . . 5 . 5 2 9 2 Corrupted Parts 4 | . . . . . . . . . . . . . 4 . . . . . . . . . . System Corruption 8 | . . . . . . . . . . . . . 8 . . . . . . . . . . Parts Lost 53 | . 1 . . . 3 1 1 . . 13 1 3 1 1 . . 1 . . 1 4 . 22 Power 7 | . . . . . . . . . . 1 . 1 . 1 . . . . . . 1 . 3 Propulsion 14 | . 1 . . . 1 1 . . . 4 . 1 . . . . . . . . . . 6 Utility 18 | . . . . . 1 . 1 . . 4 . 1 . . . . . . . 1 1 . 9 Weapon 14 | . . . . . 1 . . . . 4 1 . 1 . . . 1 . . . 2 . 4 Highest Loss Streak 15 | . 1 . . . 1 1 1 . . 10 1 2 1 1 . . 1 . . 1 2 . 15 To Critical Strikes 1 | . . . . . . . . . . . . . 1 . . . . . . . . . . Average Backups 16 | 3 8 10 10 11 10 10 10 10 11 13 14 20 21 21 20 22 21 21 22 21 19 16 17 Power . | . 1 2 2 1 1 1 1 1 1 . . . 1 1 1 1 1 . 1 1 . . . Propulsion 1 | 2 3 2 2 2 1 . . . . . . 2 2 3 3 3 3 3 3 3 2 2 1 Utility 6 | . . 2 2 3 3 2 2 2 2 5 5 6 5 7 7 9 9 9 9 8 7 8 7 Weapon 7 | 1 2 4 4 4 5 6 7 7 8 7 7 11 10 9 9 9 8 8 7 7 6 5 6 Tool/Special . | . . . . . . . . . . . . . . . . . . . . . . . . Unused Backups 32 | . 3 . . 2 2 3 . . . . 3 1 4 . . . . . . 4 5 . 5 Power 2 | . . . . . 1 . . . . . . . . . . . . . . . . . 1 Propulsion 7 | . 1 . . . . . . . . . . . . . . . . . . 2 3 . 1 Utility 12 | . . . . 1 1 . . . . . 2 1 3 . . . . . . 2 . . 2 Weapon 10 | . 2 . . 1 . 3 . . . . 1 . 1 . . . . . . . 1 . 1 Tool/Special 1 | . . . . . . . . . . . . . . . . . . . . . 1 . . Average Slot Usage (%) 84 | . 97 100 100 100 91 98 100 100 100 45 80 99 99 87 88 89 89 87 84 84 81 71 77 Engine 1 | . 14 14 14 11 . 2 7 7 7 . . . . . . . . . . . . . . Core 2 | . . . . 2 9 4 . . . 6 6 6 3 . . . . . . . . . . Reactor 2 | . . . . . . . . . . . . . 2 4 5 5 5 5 5 4 3 4 3 Treads 15 | . 12 14 14 14 2 . . . . . 20 33 32 23 20 21 21 19 15 13 14 13 15 Leg 4 | . . . . . 28 29 30 30 30 2 2 . . . . . . . . . . . . Wheel 1 | . 14 14 14 14 2 . . . . . . . . . . . . . . . . . . Device 7 | . 14 14 14 14 10 7 7 7 7 . 10 6 6 10 14 10 10 7 5 8 7 4 8 Storage 6 | . 14 14 14 14 9 7 7 7 7 7 6 6 6 5 5 5 5 5 5 4 4 4 3 Processor 12 | . . . . . . . . . . . 5 12 13 11 10 18 21 21 21 22 23 27 23 Protection 8 | . . . . . 3 14 15 15 15 17 6 6 6 5 10 7 5 7 10 9 8 6 6 Energy Gun 1 | . 11 7 . . 7 3 . 4 7 . . 3 1 . . . . . . . . 1 . Ballistic Gun 14 | . 14 20 28 28 15 21 23 17 15 8 14 22 24 17 16 15 17 21 21 17 11 . . Ballistic Cannon 1 | . . . . . . . . . . . . . . . . . . . . . 3 1 8 Impact Weapon 1 | . . . . . . 3 6 6 7 . 3 . . 4 3 4 3 . . 1 . . . Peak Build Rating 197 | 6 9 9 12 15 35 45 46 47 47 58 91 68 107 116 132 132 133 143 144 164 165 163 197 Average Rating 100 | 4 7 8 8 12 28 40 45 46 47 53 65 59 69 113 126 128 129 135 142 155 158 148 187 On Entrance 75 | . 6 9 8 12 15 35 43 46 47 47 50 67 63 107 114 129 127 133 139 144 161 151 163 Avg Prop Armor Cover (%) 11 | . 13 14 14 10 15 . . . . . 4 . . . . . 8 8 . . . . . Naked Turns 31 | . . . . . . . . . . . . . . . . . . . . . . . 31 Heaviest Build 176 | 10 28 28 26 28 40 62 68 65 63 63 94 114 131 137 141 142 134 137 136 145 154 154 176 Greatest Support 305 | 26 26 16 16 20 58 58 55 55 55 55 140 140 180 207 207 207 207 230 230 230 230 225 305 Greatest Overweight (x) 18 | 1 4 1 1 1 1 1 1 1 1 18 15 1 1 . . . . . . . . . . Average Overweight (x) . | . . 1 1 1 . . 1 1 1 12 . . . . . . . . . . . . . Largest Inventory Capacity 25 | 8 15 15 15 15 15 15 15 15 15 15 20 25 25 25 25 25 25 25 25 25 25 25 25 Average Capacity 21 | 6 9 15 15 15 15 15 15 15 15 15 18 24 25 25 25 25 25 25 25 25 25 25 24 Most Carried 25 | 7 10 10 15 15 15 15 15 15 15 15 20 25 25 25 25 25 25 25 25 25 25 25 25 Average Carried 20 | 4 8 10 11 14 14 14 14 14 15 14 17 23 24 24 23 24 24 24 24 24 24 24 24 Final Capacity 25 | 8 15 15 15 15 15 15 15 15 15 15 20 25 25 25 25 25 25 25 25 25 25 25 5 Final Carried 25 | 7 10 10 15 15 15 15 14 15 15 15 20 25 25 25 25 25 25 25 25 25 24 25 4 Scrap Suit Usage (%) 1 | . . . . . . . . . . . 5 . . . . . . . . . . . . Parts Cannibalized 4 | . . . . . . . . . . . 4 . . . . . . . . . . . . Class Distribution -------------------- 33% | Scavenger-Gunner 18% | Scavenger-Tank 17% | Gunner 10% | Tank 9% | Mutant 4% | Scavenger-Skirmisher 3% | Assassin Dominant Class ---------------- Mutant | -10/Materials Mutant | -10/Mines Mutant | -10/Exiles Mutant | -9/Mines Scavenger-Skirmisher | -8/Materials Scavenger-Tank | -7/Factory Scavenger-Tank | -7/Lower Caves Scavenger-Tank | -7/Lower Caves Scavenger-Tank | -7/Data Miner Tank | -6/Proximity Caves Assassin | -6/Factory Scavenger-Gunner | -6/Extension Scavenger-Gunner | -6/Cetus Scavenger-Tank | -5/Factory Scavenger-Tank | -4/Factory Scavenger-Gunner | -4/Upper Caves Scavenger-Gunner | -4/Upper Caves Scavenger-Gunner | -4/Zhirov Scavenger-Gunner | -3/Proximity Caves Scavenger-Gunner | -3/Research Scavenger-Gunner | -3/Armory Gunner | -3/Lab Gunner | -2/Research Resources | -11 -10 -10 -10 -9 -8 -7 -7 -7 -7 -6 -6 -6 -6 -5 -4 -4 -4 -4 -3 -3 -3 -3 -2 ----------- Run | Yrd Mat Min Exi Min Mat Fac Low Low Dat Pro Fac Ext Cet Fac Fac Upp Upp Zhi Pro Res Arm Lab Res Matter Collected 13456 | 265 95 41 . 40 204 304 337 73 . 503 1078 1118 600 141 118 334 231 268 146 860 1411 389 4900 Remotely 4304 | . . . . . . . . . . . . 132 . . . . . . . . 820 . 3352 Salvage Created 16259 | 113 309 104 . 76 320 339 149 47 . 877 1903 1505 582 316 118 146 163 247 342 589 2534 70 5410 Parts 687 | 7 17 6 . 1 15 14 4 7 . 38 68 65 36 14 . . 6 10 12 23 113 4 227 Haulers Intercepted 2 | . . . . . 1 . . . . 1 . . . . . . . . . . . . . Recyclers Shooed 15 | . 1 . . 1 1 . . . . . 5 2 . . . . . . . . . . 5 Parts Field Recycled . | . . . . . . . . . . . . . . . . . . . . . . . . Retrieved Matter . | . . . . . . . . . . . . . . . . . . . . . . . . Parts Self-Destructed 71 | . . . . . . . 2 4 . 36 . . . . . 4 6 9 10 . . . . Prevented 3 | . . . . . . . . . . . . . . . . 1 . . 2 . . . . Parts Restored . | . . . . . . . . . . . . . . . . . . . . . . . . Kills | -11 -10 -10 -10 -9 -8 -7 -7 -7 -7 -6 -6 -6 -6 -5 -4 -4 -4 -4 -3 -3 -3 -3 -2 ------- Run | Yrd Mat Min Exi Min Mat Fac Low Low Dat Pro Fac Ext Cet Fac Fac Upp Upp Zhi Pro Res Arm Lab Res Combat Hostiles Destroyed 234 | . 6 2 . . 4 6 6 4 . 16 17 16 8 2 . . 2 . 5 5 36 1 98 Melee 1 | . . . . . . . 1 . . . . . . . . . . . . . . . . Guns 117 | . 6 2 . . 4 6 2 . . 16 17 16 8 2 . . 2 . 5 5 25 1 . Cannons 67 | . . . . . . . . . . . . . . . . . . . . . 11 . 56 AOE 29 | . . . . . . . 2 4 . . . . . . . . . . . . . . 23 Classes Destroyed 20 | 2 3 . . . 1 3 1 . . 2 1 1 . . . . . . . 1 2 . 3 Worker 8 | . 1 . . . 1 . . . . . 1 . . 1 . . . . . . . . 4 Builder 11 | . . . . . . . . . . . 2 4 . . . . . . . . . . 5 Tunneler 1 | 1 . . . . . . . . . . . . . . . . . . . . . . . Hauler 2 | . . . . . 1 . . . . 1 . . . . . . . . . . . . . Recycler 20 | 1 . . . 1 1 1 . . . . 6 4 . 1 1 . . . . 1 . . 3 Watcher 12 | . 1 . . . . 1 . . . . . 1 1 . . . . . . 1 3 . 4 Swarmer 23 | . . . . . . . 3 4 . 3 1 1 . . . . . . . . . . 11 Saboteur 4 | . . . . . . . . . . . . . . . . . . . . . . . 4 Grunt 81 | . 6 2 . . 4 . 3 . . 10 7 4 . . . . . . 4 . 11 . 30 Brawler 11 | . . . . . . . . . . 1 1 1 . . . . . . . 2 . . 6 Duelist 12 | . . . . . . . . . . 1 . . . . . . . . . . . . 11 Protector 4 | . . . . . . . . . . . . . . . . . . . . . . . 4 Sentry 25 | . . . . . . 3 . . . 1 4 7 . . . . . . 1 2 4 . 3 Specialist 3 | . . . . . . . . . . . . . . . . . . . . . 3 . . Hunter 10 | . . . . . . 1 . . . . 1 . 1 . . . . . . . 5 . 2 Programmer 40 | . . . . . . 2 . . . . 3 1 2 2 . . 1 . . . 10 . 19 Heavy 2 | . . . . . . . . . . . . . . . . . . . . . 2 . . Behemoth 4 | . . . . . . . . . . . . 2 . . . . 1 . . . 1 . . Cetus Guard 5 | . . . . . . . . . . . . . 5 . . . . . . . . . . Tracker 4 | . . . . . . . . . . . . . . . . . . . . . . . 4 Combat Programmer 4 | . . . . . . . . . . . . . . . . . . . . . . . 4 Investigator 1 | . . . . . . . . . . . . . . . . . . . . . . . 1 Striker 1 | . . . . . . . . . . . . . . . . . . . . 1 . . . Thug 1 | . . . . . . . . . . . . . . 1 . . . . . . . . . Savage 1 | . . . . . . . . . . . . . . 1 . . . . . . . . . Best Kill Streak 11 | 2 3 2 . 1 2 2 3 4 . 5 9 5 3 3 1 . 1 . 3 2 6 1 11 Combat Bots Only 10 | . 2 2 . . 1 2 3 4 . 5 6 3 3 2 . . 1 . 3 1 6 1 10 Max Kills in Single Turn 4 | 1 1 1 . 1 1 1 2 2 . 2 2 2 1 3 1 . 1 . 1 1 2 1 4 Gunslinging 1 | . . . . . . . . . . . . . . . . . . . . . 1 . . Exploded 4 | . . . . . . . 2 2 . . . . . . . . . . . . . . 4 Melee 1 | . . . . . . . 1 . . . . . . . . . . . . . . . . Uniques/NPCs Destroyed 1 | . . . . . . . . . . . . . . . . . . . . . . 1 . A5 (-3/Lab) Combat | -11 -10 -10 -10 -9 -8 -7 -7 -7 -7 -6 -6 -6 -6 -5 -4 -4 -4 -4 -3 -3 -3 -3 -2 -------- Run | Yrd Mat Min Exi Min Mat Fac Low Low Dat Pro Fac Ext Cet Fac Fac Upp Upp Zhi Pro Res Arm Lab Res Hostile Shots Fired 1839 | . 23 17 . . 25 72 38 9 . 170 184 92 15 11 . . 31 . 26 6 231 9 880 Missed 506 | . 5 6 . . 9 15 6 3 . 53 49 39 4 3 . . 8 . 4 2 67 1 232 Hits 1333 | . 18 11 . . 16 57 32 6 . 117 135 53 11 8 . . 23 . 22 4 164 8 648 Melee 29 | . . . . . . . . . . 2 1 . . . . . . . . . 2 . 24 Projectile 1304 | . 18 11 . . 16 57 32 6 . 115 134 53 11 8 . . 23 . 22 4 162 8 624 AOE 1 | . . . . . . . . . . . . . . . . . . . . . . . 1 Critical Strikes 68 | . . . . . . 1 2 . . 4 1 2 3 . . . 2 . 1 2 6 . 44 Actively Blocked 1 | . . . . . . . . . . . . . . . . . . . . . . . 1 Part Disruptions 4 | . . . . . . . . . . . 1 . . . . . . . . . . . 3 Actively Blocked 1 | . . . . . . . . . . . . . . . . . . . . . . . 1 Damage Taken 23772 | . 249 144 . . 271 535 508 83 . 1666 1658 531 314 639 . . 714 . 481 91 3473 216 12199 Core 1982 | . 49 37 . . 32 70 20 . . 119 91 32 27 17 . . 21 . . 26 84 . 1357 Absorbed by Shields 2335 | . . . . . . . . . . . 23 119 13 . . . . . . . . . 2180 Reduced by Siege Mode 2690 | . . . . . . . . . . . . . . . . . 31 . 51 . 706 39 1863 Redirected to Shielding 265 | . . . . . . . . . . . . . . . . . . . . . 91 . 174 Ignored by Resistances 1297 | . . . . . . . . . . . 5 . . . . . . . . . . . 1292 Regen/Repaired (Parts) 561 | . . . . . . 37 . . . . 40 . . . 233 . . . . . . . 251 Core Remaining (%) 86 | 100 . . . 65 94 . . . . 70 . . 82 98 . . . . 98 . . 82 . Volleys Fired 730 | 5 32 13 . 5 20 17 6 2 . 32 44 53 19 6 . . 9 17 10 15 80 19 326 Largest 4 | 1 2 2 . 2 3 4 4 1 . 4 4 4 4 3 . . 4 1 4 4 4 1 3 Hottest 246 | 20 85 85 . 40 105 110 102 36 . 129 132 161 240 90 . . 130 30 135 140 140 60 246 Shots Fired 1746 | 5 58 26 . 10 60 56 21 2 . 78 154 203 74 10 . . 34 17 40 55 268 21 554 Gun 1140 | 5 58 26 . 10 60 56 20 . . 78 154 203 74 10 . . 34 17 40 55 219 21 . Cannon 558 | . . . . . . . . . . . . . . . . . . . . . 49 . 509 Launcher 48 | . . . . . . . 1 2 . . . . . . . . . . . . . . 45 Special . | . . . . . . . . . . . . . . . . . . . . . . . . Kinetic 1401 | 5 32 19 . 10 40 46 20 . . 69 154 176 73 10 . . 34 17 40 55 268 19 314 Thermal 284 | . 26 7 . . 20 . . . . 9 . 27 1 . . . . . . . . . 194 Explosive 26 | . . . . . . . 1 2 . . . . . . . . . . . . . . 23 Electromagnetic 35 | . . . . . . 10 . . . . . . . . . . . . . . . 2 23 Robot Hit Streak 47 | 5 10 7 . 9 9 10 6 . . 12 13 26 20 10 . . 21 18 33 24 47 45 46 Robot Miss Streak 7 | . 3 2 . 1 5 6 7 . . 6 4 3 3 . . . 1 1 1 1 2 1 2 Penetration Max 2 | . . . . . . . . . . . 2 1 1 . . . . 1 . 1 1 . . Secondary Targets 18 | . . . . . . . . . . 2 3 3 2 1 . . . . 1 . 6 . . Max Gunslinging Chain 1 | . . . . . . . . . . 1 1 1 1 1 . . . . 1 . 1 . . Capacitor 3 | . . . . . . . . . . . . . . . . . . . . . . . 3 Shots Hit Robots 1219 | 5 40 17 . 9 34 39 18 . . 63 112 155 52 12 1 2 31 16 33 43 206 19 312 Core Hits 762 | 4 20 5 . 2 15 38 20 7 . 76 71 61 24 7 . . 8 4 12 19 79 16 274 Critical Kills 35 | . . . . . . . 1 . . . 11 1 5 . . . 1 . . 1 14 . 1 Critical Parts Destroyed 76 | . 1 . . . 1 1 1 . . . 26 1 11 3 . 1 . . 3 7 20 . . Critical Strikes 161 | . 2 . . . 1 1 2 . . 2 39 2 19 3 . 1 5 . 3 9 41 . 31 Burn 3 | . 1 . . . . . . . . 2 . . . . . . . . . . . . . Meltdown 1 | . . . . . . . . . . . . . . . . . . . . . . . 1 Destroy 114 | . 1 . . . 1 . . . . . 37 2 19 3 . . 5 . 3 9 34 . . Blast 37 | . . . . . . . . . . . . . . . . . . . . . 7 . 30 Smash 6 | . . . . . . 1 2 . . . 2 . . . . 1 . . . . . . . Melee Attacks 173 | . . . . . 8 28 10 . . . 36 2 1 29 12 5 . . . 17 15 10 . Impact 127 | . . . . . . 15 10 . . . 36 2 1 29 12 5 . . . 17 . . . Slashing 21 | . . . . . 8 13 . . . . . . . . . . . . . . . . . Piercing 25 | . . . . . . . . . . . . . . . . . . . . . 15 10 . Sneak Attacks 9 | . . . . . . 1 . . . . 4 . . 3 1 . . . . . . . . Combat Hostiles . | . . . . . . . . . . . . . . . . . . . . . . . . Follow-up Attacks . | . . . . . . . . . . . . . . . . . . . . . . . . Damage Inflicted 48605 | 33 416 172 . 71 460 870 655 273 . 1848 1909 3295 782 815 113 211 788 400 778 1253 7317 1292 24854 Guns 19168 | 33 416 172 . 71 439 709 319 . . 1848 1556 3279 782 241 . . 788 400 778 1253 4792 1292 . Cannons 17880 | . . . . . . . . . . . . . . . . . . . . . 2525 . 15355 Explosions 10290 | . . . . . . . 173 273 . . . . . 351 . . . . . . . . 9493 Melee 1195 | . . . . . . 161 163 . . . 324 . . 223 113 211 . . . . . . . Ramming 72 | . . . . . 21 . . . . . 29 16 . . . . . . . . . . 6 Kinetic 33453 | 33 150 94 . 71 205 605 319 . . 1748 1556 2696 782 241 . . 788 400 778 1253 7317 1292 13125 Thermal 4586 | . 266 78 . . 234 . . . . 100 . 583 . 351 . . . . . . . . 2974 Explosive 5172 | . . . . . . . 173 273 . . . . . . . . . . . . . . 4726 Electromagnetic 4127 | . . . . . . 104 . . . . . . . . . . . . . . . . 4023 Impact 1163 | . . . . . . 129 163 . . . 324 . . 223 113 211 . . . . . . . Slashing 32 | . . . . . . 32 . . . . . . . . . . . . . . . . . Piercing . | . . . . . . . . . . . . . . . . . . . . . . . . Highest Corruption 39 | . . . . . . 1 1 1 1 1 2 2 10 4 . . . . . . 2 3 39 Average Corruption 2 | . . . . . . 1 1 1 1 1 1 2 2 3 . . . . . . 1 2 4 Corruption Purged . | . . . . . . . . . . . . . . . . . . . . . . . . Corruption Blocked . | . . . . . . . . . . . . . . . . . . . . . . . . Effects 176 | . . . . . . 3 6 7 2 15 8 32 15 6 . . . . . . 8 8 66 Message Errors 33 | . . . . . . . 1 1 . 2 2 8 1 3 . . . . . . 3 3 9 Matter Fused 48 | . . . . . . 3 1 2 1 6 3 5 6 2 . . . . . . 1 . 18 Heat Flow Errors 23 | . . . . . . . 2 1 . . 3 7 2 . . . . . . . 1 2 5 Energy Discharges 21 | . . . . . . . 1 1 . . . 5 4 . . . . . . . 2 . 8 Parts Rejected 4 | . . . . . . . . . . 1 . 1 . 1 . . . . . . . . 1 Parts Fused 4 | . . . . . . . . . . 1 . . . . . . . . . . 1 . 2 Data Loss (minor) 17 | . . . . . . . 1 . . 3 . 5 . . . . . . . . . 1 7 Data Loss (major) 7 | . . . . . . . . 2 1 . . . 1 . . . . . . . . . 3 Misfires 8 | . . . . . . . . . . 2 . 1 1 . . . . . . . . 2 2 Misdirections 3 | . . . . . . . . . . . . . . . . . . . . . . . 3 Weapon Failures 8 | . . . . . . . . . . . . . . . . . . . . . . . 8 Overload Shots 1 | . . . . . . . . . . . . . 1 . . . . . . . . . . Overflow Damage 2618 | . . . . . . 129 85 . . . 234 . . 106 83 179 . . . . 30 . 1772 Projectiles 1488 | . . . . . . . . . . . . . . . . . . . . . 30 . 1458 Explosions 354 | . . . . . . . . . . . . . . 40 . . . . . . . . 314 Melee 776 | . . . . . . 129 85 . . . 234 . . 66 83 179 . . . . . . . Knockbacks 96 | . . . . . . . 1 . . . 4 . . 3 . 1 . . . . 4 . 83 Impact 8 | . . . . . . . 1 . . . 3 . . 3 . 1 . . . . . . . Kinetic 78 | . . . . . . . . . . . . . . . . . . . . . 4 . 74 Secondary 10 | . . . . . . . . . . . 1 . . . . . . . . . . . 9 Self-Inflicted Damage 489 | . . . . . . . . . . . . . . 416 . . . . . . . . 73 Shots 6 | . . . . . . . . . . . . . . 4 . . . . . . . . 2 Rammed 7 | . . . . . . . . . . . 4 2 . . . . . . . . . . 1 Targets Rammed 11 | . . . . . 3 . . . . . 5 2 . . . . . . . . . . 1 Kicked 3 | . . . . . 3 . . . . . . . . . . . . . . . . . . Crushed 1 | . . . . . . . . . . . 1 . . . . . . . . . . . . Highest Temperature 423 | . 125 220 . . 154 31 272 111 . 423 396 241 187 . . . . . 21 . 99 170 366 Average Temperature 79 | . 48 122 . . 53 11 87 69 . 136 157 54 94 . . . . . 10 . 15 60 62 Received Heat Transfer 3641 | . 144 84 . . 153 90 243 . . 543 374 154 . 18 . . 63 . 126 9 360 . 1280 Effects 11 | . . . . . . . . . . 5 5 . . . . . . . . . . . 1 Energy Bleed 2 | . . . . . . . . . . . 1 . . . . . . . . . . . 1 Interference 8 | . . . . . . . . . . 5 3 . . . . . . . . . . . . Matter Decay 1 | . . . . . . . . . . . 1 . . . . . . . . . . . . Siege Activations 44 | . . . . . . . . . . . . . . 1 2 . 1 . 2 1 12 1 24 Total Turns 1413 | . . . . . . . . . . . . . . 1 157 . 23 . 53 4 328 18 829 Longest Duration 133 | . . . . . . . . . . . . . . 1 94 . 23 . 28 4 76 18 133 Martial Activations . | . . . . . . . . . . . . . . . . . . . . . . . . Shielding Activations . | . . . . . . . . . . . . . . . . . . . . . . . . Robots Disrupted 1 | . . . . . . . . . . . . . . . . . . . . . . . 1 Combat Hostiles . | . . . . . . . . . . . . . . . . . . . . . . . . Robots Corrupted 24 | . . . . . . . 1 . . . 3 . . 1 . 1 . . . . . . 18 Combat Hostiles 20 | . . . . . . . 1 . . . . . . . . 1 . . . . . . 18 Parts Fried 34 | . . . . . . 1 . . . . 7 . 1 2 2 . . . 1 . . . 20 Impact Corruptions 31 | . . . . . . 4 3 . . . 9 . . 3 2 6 . . . . . . 4 Robots Melted 1 | . . . . . . . . . . . . . . . . . . . . . . . 1 Combat Hostiles 1 | . . . . . . . . . . . . . . . . . . . . . . . 1 Parts Melted 4 | . . . . . . . . . . . . 2 . . . . . . . 1 . . 1 Heat Transferred 5528 | . 671 185 . . 444 . . . . 370 . 1325 . 200 . . . . . . . . 2333 Parts Sabotaged 7 | . . . . . . . . . . . . . . . . . . . . . 4 . 3 Parts Stolen . | . . . . . . . . . . . . . . . . . . . . . . . . Parts Stripped . | . . . . . . . . . . . . . . . . . . . . . . . . Power Chain Reactions 8 | . . . . . . . . . . . . . . . . . . . . . . . 8 Alert | -11 -10 -10 -10 -9 -8 -7 -7 -7 -7 -6 -6 -6 -6 -5 -4 -4 -4 -4 -3 -3 -3 -3 -2 ------- Run | Yrd Mat Min Exi Min Mat Fac Low Low Dat Pro Fac Ext Cet Fac Fac Upp Upp Zhi Pro Res Arm Lab Res Maximum Alert Level 5 | . . . . . . . . . . . 1 1 1 . . . . . . . 2 . 5 Low Security (%) 72 | 100 100 100 . 100 100 100 . . . . 82 86 85 100 100 . . . . 100 39 . 31 Level 1 9 | . . . . . . . . . . . 17 13 14 . . . . . . . 29 . 1 Level 2 7 | . . . . . . . . . . . . . . . . . . . . . 30 . 13 Level 3 1 | . . . . . . . . . . . . . . . . . . . . . . . 9 Level 4 1 | . . . . . . . . . . . . . . . . . . . . . . . 6 Level 5 5 | . . . . . . . . . . . . . . . . . . . . . . . 26 High Security 2 | . . . . . . . . . . . . . . . . . . . . . . . 10 Max Security . | . . . . . . . . . . . . . . . . . . . . . . . . Peak Influence 2759 | 10 77 40 . 24 50 93 . . . . 273 313 264 97 14 . . . . 179 616 . 2759 Initial 163 | . . . . . . . . . . . 35 128 163 47 9 . . . . . 22 . . Average 279 | 1 27 10 . 1 10 25 . . . . 75 73 126 22 . . . . . 52 262 . 966 Influence Increases 8646 | 10 223 50 . 39 182 227 140 90 . 370 677 796 427 226 44 10 60 15 145 344 1153 . 3418 Destroy 0b10 Robot/C 4860 | . 120 40 . 20 80 120 120 80 . 320 340 500 220 40 . . 40 . 100 100 720 . 1900 Destroy 0b10 Robot/NC 335 | 10 10 . . 5 15 10 . . . 5 45 60 10 10 5 10 . 15 . 10 15 . 100 Destroy Leader 938 | . 32 10 . 10 12 52 20 10 . 30 80 66 30 10 . . 20 . . 32 176 . 348 Allied During Kill 248 | . . . . 4 2 . . . . . . 136 106 . . . . . . . . . . Successful Hack 92 | . . . . . 5 . . . . . 18 12 3 12 17 . . . . 20 . . 5 Select Force Hacks 20 | . . . . . . 20 . . . . . . . . . . . . . . . . . Disable Machine 405 | . . . . . . . . . . . 45 15 45 60 . . . . . . 120 . 120 Anti-Garrison Action 150 | . . . . . . . . . . . . . . . . . . . . 150 . . . Destroy Structure 1238 | . 1 . . . 8 25 . . . . 74 7 13 94 22 . . . . 32 92 . 870 Partial Spotted 45 | . . . . . . . . . . . 15 . . . . . . . . . 15 . 15 Lose Combat Pursuer 315 | . 60 . . . 60 . . . . 15 60 . . . . . . . 45 . 15 . 60 Influence Decreases 5982 | 10 223 50 . 39 182 184 183 32 58 313 472 766 634 291 64 10 60 15 145 301 584 612 754 Entered New Map 1041 | . . . . . . . 16 . 58 . 22 134 129 38 11 . . . . . 21 612 . Time Decay 4117 | 10 213 50 . 19 153 174 157 32 . 223 290 462 470 243 53 10 60 15 145 301 523 . 514 Lost Part 450 | . 10 . . . 10 10 10 . . 90 10 30 10 10 . . . . . . 40 . 220 Lost Ally 224 | . . . . 20 19 . . . . . . 140 25 . . . . . . . . . 20 Purge Threat 150 | . . . . . . . . . . . 150 . . . . . . . . . . . . Squads Dispatched 77 | . 1 . . . 1 6 . . . . 8 5 . 2 2 . . . . 2 10 . 40 Investigation 6 | . . . . . . 1 . . . . 1 3 . . 1 . . . . . . . . Extermination 20 | . . . . . . 2 . . . . 3 . . 2 1 . . . . . 4 . 8 Reinforcement 14 | . 1 . . . . . . . . . 2 2 . . . . . . . 2 3 . 4 Assault 25 | . . . . . . . . . . . . . . . . . . . . . 3 . 22 Garrison 10 | . . . . . 1 3 . . . . 2 . . . . . . . . . . . 4 Intercept 2 | . . . . . . . . . . . . . . . . . . . . . . . 2 Searches Triggered . | . . . . . . . . . . . . . . . . . . . . . . . . Unchained Authorized 1 | . . . . . . . . . . . . . . . . . . . . . . . 1 Data Miner Redirects 2 | . . . . . . . . . . . . 1 . . . . . . . . 1 . . Construction Impeded 4 | . . . . . . . . . . . 2 1 . . . . . . . . . . 1 Haulers Reinforced 1 | . . . . . . . . . . . . . . . . . . . . 1 . . . Active Scanning Responses . | . . . . . . . . . . . . . . . . . . . . . . . . Cargo Convoy Interrupts . | . . . . . . . . . . . . . . . . . . . . . . . . Stealth | -11 -10 -10 -10 -9 -8 -7 -7 -7 -7 -6 -6 -6 -6 -5 -4 -4 -4 -4 -3 -3 -3 -3 -2 --------- Run | Yrd Mat Min Exi Min Mat Fac Low Low Dat Pro Fac Ext Cet Fac Fac Upp Upp Zhi Pro Res Arm Lab Res Distress Signals 22 | . 3 . . . 2 . . . . . 2 3 2 . . . . . . 3 2 . 5 Communications Jammed . | . . . . . . . . . . . . . . . . . . . . . . . . Distress Signals . | . . . . . . . . . . . . . . . . . . . . . . . . Times Spotted 400 | . 15 2 . 3 19 7 6 4 . 17 29 36 12 5 1 . 2 . 7 22 43 1 169 Peak Tracking Total 31 | . 4 2 . 2 6 2 3 4 . 6 6 5 5 3 1 . 1 . 3 4 5 1 31 Tactical Retreats 16 | . 3 . . . 3 . . . . 1 2 . . . . . . . 2 . 1 . 4 Traps | -11 -10 -10 -10 -9 -8 -7 -7 -7 -7 -6 -6 -6 -6 -5 -4 -4 -4 -4 -3 -3 -3 -3 -2 ------- Run | Yrd Mat Min Exi Min Mat Fac Low Low Dat Pro Fac Ext Cet Fac Fac Upp Upp Zhi Pro Res Arm Lab Res Traps Triggered 9 | . . . . . . . . . . . 3 1 . 1 . . . . . 1 1 . 2 Indirectly . | . . . . . . . . . . . . . . . . . . . . . . . . Trap Hack Attempts . | . . . . . . . . . . . . . . . . . . . . . . . . Triggered . | . . . . . . . . . . . . . . . . . . . . . . . . Disarmed . | . . . . . . . . . . . . . . . . . . . . . . . . Reprogrammed . | . . . . . . . . . . . . . . . . . . . . . . . . Reused . | . . . . . . . . . . . . . . . . . . . . . . . . Traps Extracted . | . . . . . . . . . . . . . . . . . . . . . . . . Installed . | . . . . . . . . . . . . . . . . . . . . . . . . Triggered . | . . . . . . . . . . . . . . . . . . . . . . . . Machines | -11 -10 -10 -10 -9 -8 -7 -7 -7 -7 -6 -6 -6 -6 -5 -4 -4 -4 -4 -3 -3 -3 -3 -2 ---------- Run | Yrd Mat Min Exi Min Mat Fac Low Low Dat Pro Fac Ext Cet Fac Fac Upp Upp Zhi Pro Res Arm Lab Res Machines Disabled 30 | . . . . . . . . . . . 3 2 3 4 . . . . . 1 8 1 8 Max in Single Turn 4 | . . . . . . . . . . . 2 1 2 4 . . . . . 1 2 1 1 Garrison Access 2 | . . . . . . . . . . . . . . 1 . . . . . 1 . . . Energy Cycler 1 | . . . . . . . . . . . . . . . . . . . . . 1 . . Machines Repaired . | . . . . . . . . . . . . . . . . . . . . . . . . Machines Dismantled . | . . . . . . . . . . . . . . . . . . . . . . . . Machines Sabotaged . | . . . . . . . . . . . . . . . . . . . . . . . . Overloaded Fab Kills . | . . . . . . . . . . . . . . . . . . . . . . . . Hacking | -11 -10 -10 -10 -9 -8 -7 -7 -7 -7 -6 -6 -6 -6 -5 -4 -4 -4 -4 -3 -3 -3 -3 -2 --------- Run | Yrd Mat Min Exi Min Mat Fac Low Low Dat Pro Fac Ext Cet Fac Fac Upp Upp Zhi Pro Res Arm Lab Res Machines Accessed 60 | . 3 . 5 . 3 6 . . 4 . 5 6 1 5 3 1 . 7 . 5 2 1 3 Terminals 24 | . 2 . . . 2 3 . . . . 3 5 1 2 1 . . . . 2 1 . 2 Fabricators 4 | . . . . . . 1 . . . . 1 . . . 1 . . . . . 1 . . Repair Stations 3 | . . . . . . 1 . . . . . . . 1 1 . . . . . . . . Recycling Units 6 | . 1 . . . . . . . . . 1 1 . 1 . . . . . 2 . . . Scanalyzers . | . . . . . . . . . . . . . . . . . . . . . . . . Garrison Access 5 | . . . . . 1 1 . . . . . . . 1 . . . . . 1 . . 1 Total Hacks 192 | . 5 . 50 . 6 9 . . 31 . 12 14 3 7 7 1 . 28 . 9 4 1 5 Successful 150 | . 3 . 50 . 2 5 . . 31 . 7 3 1 4 6 1 . 28 . 5 2 1 1 Failed 42 | . 2 . . . 4 4 . . . . 5 11 2 3 1 . . . . 4 2 . 4 Catastrophic 10 | . . . . . 2 3 . . . . . 1 . . 1 . . . . 2 . . 1 Database Lockouts . | . . . . . . . . . . . . . . . . . . . . . . . . Manual 23 | . 2 . 1 . 4 3 . . . . 4 6 . . . . . . . 1 . 1 1 Terminals 51 | . 3 . . . 5 4 . . . . 9 12 3 3 1 . . . . 6 2 . 3 Fabricators 7 | . . . . . . 1 . . . . 2 . . . 2 . . . . . 2 . . Repair Stations 8 | . . . . . . 3 . . . . . . . 1 4 . . . . . . . . Recycling Units 9 | . 2 . . . . . . . . . 1 2 . 2 . . . . . 2 . . . Scanalyzers . | . . . . . . . . . . . . . . . . . . . . . . . . Garrison Access 6 | . . . . . 1 1 . . . . . . . 1 . . . . . 1 . . 2 Terminal Hacks 131 | . 2 . 50 . 2 1 . . 31 . 6 3 1 1 1 1 . 28 . 2 . 1 1 Record 79 | . . . 49 . . . . . 11 . . 1 1 . . . . 16 . . . 1 . Part Schematic 16 | . . . . . . . . . 12 . . . . . . . . 4 . . . . . Robot Schematic 5 | . . . . . . . . . 5 . . . . . . . . . . . . . . Robot Analysis 4 | . . . . . . . . . . . . . . . . . . 4 . . . . . Prototype ID Bank 11 | . . . . . 1 . . . 3 . 2 1 . . . . . 4 . . . . . Open Door 2 | . . . . . . . . . . . . 1 . . . 1 . . . . . . . Open DSF 3 | . . . . . . 1 . . . . . . . 1 1 . . . . . . . . Branch Access Points 2 | . . . . . . . . . . . 1 . . . . . . . . 1 . . . Terminal Index 2 | . . . . . 1 . . . . . 1 . . . . . . . . . . . . Unreport Threat 1 | . . . . . . . . . . . 1 . . . . . . . . . . . . Locate Traps 3 | . 2 . . . . . . . . . . . . . . . . . . 1 . . . Hauler Manifests 1 | . . . . . . . . . . . 1 . . . . . . . . . . . . Zone Layout 1 | . . . . . . . . . . . . . . . . . . . . . . . 1 Proto ID Catalog 1 | . . . 1 . . . . . . . . . . . . . . . . . . . . Fabricator Hacks 4 | . . . . . . . . . . . . . . . 2 . . . . . 2 . . Load Schematic 2 | . . . . . . . . . . . . . . . 1 . . . . . 1 . . Build 2 | . . . . . . . . . . . . . . . 1 . . . . . 1 . . Repair Station Hacks 7 | . . . . . . 3 . . . . . . . 1 3 . . . . . . . . Scan Component 5 | . . . . . . 2 . . . . . . . 1 2 . . . . . . . . Repair 2 | . . . . . . 1 . . . . . . . . 1 . . . . . . . . Recycling Unit Hacks 5 | . 1 . . . . . . . . . 1 . . 1 . . . . . 2 . . . Report Inventory 4 | . 1 . . . . . . . . . 1 . . . . . . . . 2 . . . Retrieve Matter 1 | . . . . . . . . . . . . . . 1 . . . . . . . . . Scanalyzer . | . . . . . . . . . . . . . . . . . . . . . . . . Garrison Access Hacks 1 | . . . . . . . . . . . . . . 1 . . . . . . . . . Seal Access 1 | . . . . . . . . . . . . . . 1 . . . . . . . . . Unauthorized Hacks 2 | . . . . . . 1 . . . . . . . . . . . . . 1 . . . Terminals 1 | . . . . . . . . . . . . . . . . . . . . 1 . . . Skim 1 | . . . . . . . . . . . . . . . . . . . . 1 . . . Fabricators 1 | . . . . . . 1 . . . . . . . . . . . . . . . . . Download 1 | . . . . . . 1 . . . . . . . . . . . . . . . . . Repair Stations . | . . . . . . . . . . . . . . . . . . . . . . . . Recycling Units . | . . . . . . . . . . . . . . . . . . . . . . . . Scanalyzers . | . . . . . . . . . . . . . . . . . . . . . . . . Garrison Access . | . . . . . . . . . . . . . . . . . . . . . . . . Data Cores Recovered . | . . . . . . . . . . . . . . . . . . . . . . . . Used . | . . . . . . . . . . . . . . . . . . . . . . . . Hacking Detections 33 | . 2 . . . 3 4 . . . . 4 6 1 3 2 . . . . 4 1 . 3 Full Trace Events 2 | . . . . . . . . . . . . 1 . . 1 . . . . . . . . Feedback Events . | . . . . . . . . . . . . . . . . . . . . . . . . Feedback Blocked . | . . . . . . . . . . . . . . . . . . . . . . . . Robot Schematics Acquired 5 | . . . . . . . . . 5 . . . . . . . . . . . . . . Robots Built . | . . . . . . . . . . . . . . . . . . . . . . . . Authchips . | . . . . . . . . . . . . . . . . . . . . . . . . Time . | . . . . . . . . . . . . . . . . . . . . . . . . Total Robot Build Rating . | . . . . . . . . . . . . . . . . . . . . . . . . Part Schematics Acquired 16 | . . . . . . . . . 12 . . . . . . . . 4 . . . . . Parts Built 2 | . . . . . . . . . . . . . . . 1 . . . . . 1 . . Authchips 1 | . . . . . . . . . . . . . . . . . . . . . 1 . . Time 304 | . . . . . . . . . . . . . . . 152 . . . . . 152 . . Total Part Build Rating 10 | . . . . . . . . . . . . . . . 5 . . . . . 5 . . Part Studies Acquired . | . . . . . . . . . . . . . . . . . . . . . . . . Parts Repaired 2 | . . . . . . 1 . . . . . . . . 1 . . . . . . . . Time 158 | . . . . . . 50 . . . . . . . . 108 . . . . . . . . Parts Recycled . | . . . . . . . . . . . . . . . . . . . . . . . . Recycled Matter . | . . . . . . . . . . . . . . . . . . . . . . . . Retrieved Matter . | . . . . . . . . . . . . . . . . . . . . . . . . Retrieved Components . | . . . . . . . . . . . . . . . . . . . . . . . . Parts Scanalyzed . | . . . . . . . . . . . . . . . . . . . . . . . . Part Schematics Acquired . | . . . . . . . . . . . . . . . . . . . . . . . . Parts Damaged . | . . . . . . . . . . . . . . . . . . . . . . . . Bothacking | -11 -10 -10 -10 -9 -8 -7 -7 -7 -7 -6 -6 -6 -6 -5 -4 -4 -4 -4 -3 -3 -3 -3 -2 ------------ Run | Yrd Mat Min Exi Min Mat Fac Low Low Dat Pro Fac Ext Cet Fac Fac Upp Upp Zhi Pro Res Arm Lab Res Used RIF Installer . | . . . . . . . . . . . . . . . . . . . . . . . . Robots Hacked . | . . . . . . . . . . . . . . . . . . . . . . . . Non-combat . | . . . . . . . . . . . . . . . . . . . . . . . . Combat . | . . . . . . . . . . . . . . . . . . . . . . . . Robot Hacks Applied . | . . . . . . . . . . . . . . . . . . . . . . . . Relay Couplers Released 3 | . . . . . . . . . . . . . . . . . . . . 3 . . . Machine Destruction 3 | . . . . . . . . . . . . . . . . . . . . 3 . . . Fabnet Peak Effective % . | . . . . . . . . . . . . . . . . . . . . . . . . Robots Rewired 7 | . . . . . . . . . . . . 7 . . . . . . . . . . . Allies Hacked . | . . . . . . . . . . . . . . . . . . . . . . . . Hacks Repelled . | . . . . . . . . . . . . . . . . . . . . . . . . Allies | -11 -10 -10 -10 -9 -8 -7 -7 -7 -7 -6 -6 -6 -6 -5 -4 -4 -4 -4 -3 -3 -3 -3 -2 -------- Run | Yrd Mat Min Exi Min Mat Fac Low Low Dat Pro Fac Ext Cet Fac Fac Upp Upp Zhi Pro Res Arm Lab Res Total Allies 16 | . . . . 2 . . . . . . . 14 . . . . . . . . . . . Largest Group 7 | . . . . 2 1 . . . . . . 7 5 3 . . . . . . . . . Highest-Rated Group 313 | . . . . 47 31 . . . . . . 313 250 201 . . . . . . . . . Highest-Rated Ally 159 | . . . . 31 31 . . . . . . 159 159 153 . . . . . . . . . Total Orders 6 | . . . . . . . . . . . . . . . . . . . . . . . 6 EXPLORE 4 | . . . . . . . . . . . . . . . . . . . . . . . 4 RETURN 2 | . . . . . . . . . . . . . . . . . . . . . . . 2 Ally Attacks 133 | . . . . 10 6 . . . . . . 85 32 . . . . . . . . . . Total Damage 3309 | . . . . 110 63 . . . . . . 2163 973 . . . . . . . . . . Kills 20 | . . . . 2 . . . . . . . 14 4 . . . . . . . . . . Allies Corrupted . | . . . . . . . . . . . . . . . . . . . . . . . . Allies Melted . | . . . . . . . . . . . . . . . . . . . . . . . . Intel | -11 -10 -10 -10 -9 -8 -7 -7 -7 -7 -6 -6 -6 -6 -5 -4 -4 -4 -4 -3 -3 -3 -3 -2 ------- Run | Yrd Mat Min Exi Min Mat Fac Low Low Dat Pro Fac Ext Cet Fac Fac Upp Upp Zhi Pro Res Arm Lab Res Active Infowar (turns) 9341 | 14 658 186 821 178 72 . . . . . 953 . . 975 596 . . . . . 561 518 3809 Optics 4888 | . . . . . . . . . . . . . . . . . . . . . 561 518 3809 Terrain 953 | . . . . . . . . . . . 953 . . . . . . . . . . . . Seismic 1929 | 14 658 186 821 178 72 . . . . . . . . . . . . . . . . . . Jamming 1571 | . . . . . . . . . . . . . . 975 596 . . . . . . . . Robot Analysis Total 4 | . . . . . . . . . . . . . . . . . . 4 . . . . . Derelict Logs Recovered 9 | . . 1 . 1 . . 1 1 . 2 . . . . . 1 2 . . . . . . Drone Launches 4 | . . . . . . . . . . . . . . . . . . . . . . . 4 Drone Recoveries 2 | . . . . . . . . . . . . . . . . . . . . . . . 2 Exploration | -11 -10 -10 -10 -9 -8 -7 -7 -7 -7 -6 -6 -6 -6 -5 -4 -4 -4 -4 -3 -3 -3 -3 -2 ------------- Run | Yrd Mat Min Exi Min Mat Fac Low Low Dat Pro Fac Ext Cet Fac Fac Upp Upp Zhi Pro Res Arm Lab Res Turns Passed 25831 | 84 658 186 821 178 560 1117 978 594 151 2459 2154 2230 1185 1068 731 562 709 408 801 1435 2399 518 3845 Spaces Moved 11506 | 68 495 130 713 107 329 618 484 308 80 338 958 1092 550 570 244 325 411 211 445 758 759 237 1276 Core 356 | 14 1 . . . . . . . . 253 29 . . . . . . . . . . . 59 Treads 7600 | . 1 . . 25 16 . . . . . 739 1092 550 570 244 325 411 211 445 758 759 237 1217 Legs 1833 | . . . . . 258 618 484 308 80 85 . . . . . . . . . . . . . Wheels 1527 | 54 493 130 713 82 55 . . . . . . . . . . . . . . . . . . Hover 190 | . . . . . . . . . . . 190 . . . . . . . . . . . . Flight . | . . . . . . . . . . . . . . . . . . . . . . . . Fastest Speed 50 | 50 80 115 115 115 115 120 190 190 190 120 160 160 160 160 162 162 160 160 160 155 155 180 50 Average Speed 173 | 86 100 115 115 144 125 122 190 190 190 702 181 166 186 161 162 162 161 160 160 158 171 180 160 Slowest Speed 950 | 100 250 115 115 240 240 190 190 190 190 950 800 240 240 162 162 162 162 163 160 160 180 180 180 Overloaded Moves . | . . . . . . . . . . . . . . . . . . . . . . . . Propulsion Burnouts . | . . . . . . . . . . . . . . . . . . . . . . . . Robots Hopped . | . . . . . . . . . . . . . . . . . . . . . . . . Potential Cave-ins 2 | . . . . . . . . . . . 2 . . . . . . . . . . . . Cave-ins Triggered . | . . . . . . . . . . . . . . . . . . . . . . . . Teleports 2 | . . . . . . . . . . . . . . . . . . . . . 1 . 1 Exploration Rate (%) 48 | 4 96 33 93 24 27 19 64 50 69 54 19 84 88 15 7 49 65 62 63 14 34 94 42 Regions Visited 23 Branch Regions 15 Pre-discovered Areas 6 | . . . 1 1 . . . . 1 . . . . . . . . 3 . . . . . Known Exits Taken 3 | . . . . . . 1 . . . . 1 . . . . . . . . 1 . . . Unknown Exits Taken 20 | 1 1 1 1 1 1 . 1 1 1 1 . 1 1 1 1 1 1 1 1 . 1 1 . Scrap Searched 15 | . . 1 . 1 . . 4 1 . 1 . . . . . 1 2 . 4 . . . . Spaces Dug 276 | . . . . . 8 25 3 . . . 32 2 . 25 11 3 . . . 14 13 . 140 Terrain Destroyed 621 | . . . . . 8 25 12 18 . 4 78 4 . 45 11 3 2 . 12 15 50 . 334 Melee 136 | . . . . . 8 25 3 . . . 32 2 . 25 11 3 . . . 14 13 . . Projectile 246 | . . . . . . . . . . 4 6 1 . . . . 2 . 12 1 18 . 202 AOE 232 | . . . . . . . 9 18 . . 39 . . 20 . . . . . . 14 . 132 Terrain Rammed . | . . . . . . . . . . . . . . . . . . . . . . . . Walls Destroyed . | . . . . . . . . . . . . . . . . . . . . . . . . Machines Disabled . | . . . . . . . . . . . . . . . . . . . . . . . . Actions | -11 -10 -10 -10 -9 -8 -7 -7 -7 -7 -6 -6 -6 -6 -5 -4 -4 -4 -4 -3 -3 -3 -3 -2 --------- Run | Yrd Mat Min Exi Min Mat Fac Low Low Dat Pro Fac Ext Cet Fac Fac Upp Upp Zhi Pro Res Arm Lab Res Total 15687 | 85 604 143 714 123 432 885 510 313 79 392 1202 1381 670 651 553 349 434 264 509 924 1624 313 2533 Wait 2283 | . 59 . . . 34 181 7 . . 3 66 84 22 28 287 14 9 . 45 61 645 7 731 Move 11483 | 67 494 129 712 106 328 617 483 307 79 337 957 1091 549 569 243 324 410 210 444 757 758 236 1276 Hop . | . . . . . . . . . . . . . . . . . . . . . . . . Pick Up 178 | 7 7 . 2 4 10 6 . 1 . 5 19 17 22 3 2 1 1 6 2 15 13 6 29 Fast Attach 122 | 6 1 . . . 5 5 . . . 4 14 5 4 3 1 . 2 7 1 11 25 9 19 Attach 85 | . 1 . . . 4 4 1 . . 6 11 4 7 3 2 . 1 1 1 3 11 5 20 Detach 40 | . . . . . 1 2 . . . 4 6 . . 1 . . . 1 . 1 9 8 7 Swap 277 | . 6 1 . 3 8 16 3 3 . 1 23 28 18 6 5 4 2 6 3 21 31 2 87 Drop 225 | . 4 . . 5 11 9 . . . . 21 24 28 3 1 1 . 13 3 23 34 11 34 Fire 730 | 5 32 13 . 5 20 17 6 2 . 32 44 53 19 6 . . 9 17 10 15 80 19 326 Melee 173 | . . . . . 8 28 10 . . . 36 2 1 29 12 5 . . . 17 15 10 . Ram . | . . . . . . . . . . . . . . . . . . . . . . . . Kick 3 | . . . . . 3 . . . . . . . . . . . . . . . . . . Crush 8 | . . . . . . . . . . . 5 2 . . . . . . . . . . 1 Escape Stasis 3 | . . . . . . . . . . . . . . . . . . . . . . . 3 Rewire 77 | . . . . . . . . . . . . 71 . . . . . 3 . . 3 . . Trap . | . . . . . . . . . . . . . . . . . . . . . . . . Miscellaneous . | . . . . . . . . . . . . . . . . . . . . . . . . Route ------- -11/Scrapyard -10/Materials (discovered 4 exits: [*Mat x2] / [*Min x2]) -10/Mines -10/Exiles (discovered 2 exits: [*Min x2]) -9/Mines -8/Materials -7/Factory -7/Lower Caves -7/Lower Caves -7/Data Miner -6/Proximity Caves -6/Factory (discovered 4 exits: Low x2 / *Ext x2) -6/Extension (discovered 3 exits: *Fac x2 / *Cet) -6/Cetus (discovered 2 exits: *Fac / [*Arc]) -5/Factory (discovered 3 exits: *Fac / [*Upp] / DSF) -4/Factory -4/Upper Caves -4/Upper Caves -4/Zhirov -3/Proximity Caves -3/Research (discovered 4 exits: *Res / *Arm / Tes x2) -3/Armory -3/Lab -2/Research (discovered 1 exit: [*Qua]) History --------- Turn | Location | Event 8 | -11/Scrapyard | Discovered new exit (range 16) 85 | -11/Scrapyard | Entered Materials 315 | -10/Materials | Build established: Mutant 434 | -10/Materials | Discovered new exit (range 15) 445 | -10/Materials | Discovered new exit (range 16) 608 | -10/Materials | Discovered new exit (range 16) 717 | -10/Materials | Discovered new exit (range 8) 743 | -10/Materials | Entered Mines 793 | -10/Mines | Met a Derelict bent on vengeance 888 | -10/Mines | Learned 2 Materials zone layouts 923 | -10/Mines | Deemed a non-threat by the Exiles lab entrance 924 | -10/Mines | Discovered new exit (range 5) 929 | -10/Mines | Entered Exiles 952 | -10/Exiles | Discovered new exit (range 14) 987 | -10/Exiles | Met 8R-AWN 1005 | -10/Exiles | Met EX-HEX 1080 | -10/Exiles | Met EX-DEC 1103 | -10/Exiles | Visited The Gauntlet 1312 | -10/Exiles | Learned location of Zion (-6) 1346 | -10/Exiles | Met EX-BIN 1522 | -10/Exiles | Discovered new exit (range 10) 1599 | -10/Exiles | Aligned with FarCom system 1600 | -10/Exiles | Given EX-Vault access code 1629 | -10/Exiles | Opened EX-Vault 1638 | -10/Exiles | Found XL Autogun Array 1663 | -10/Exiles | Warned to stay clear of 0b10 Research branches 1750 | -10/Exiles | Left Exiles lab with XL Autogun Array 1750 | -10/Exiles | Entered Mines 1769 | -9/Mines | Assembled infested the area 1774 | -9/Mines | Assisted by a Guerilla fighting off Assembled 1796 | -9/Mines | Found a Scrap Suit stashed away for nefarious purposes 1800 | -9/Mines | Found Scrap Suit 1830 | -9/Mines | Learned location of Storage (-9) 1832 | -9/Mines | Discovered new exit (range 15) 1928 | -9/Mines | Entered Materials 1928 | -8/Materials | Accompanied by 1 ally 1928 | -8/Materials | Evolved 4 slots: Propulsion x2, Utility x1, Weapon x1 1933 | -8/Materials | Led the pair of lost Derelicts to an unsafe place 2013 | -8/Materials | Garrison activated, responded to threat 2477 | -8/Materials | Discovered new exit (range 10) 2488 | -8/Materials | Entered Factory 2488 | -7/Factory | Evolved 2 slots: Utility x1, Weapon x1 2913 | -7/Factory | Repaired Flexi-carbon Leg 3155 | -7/Factory | Garrison activated, responded to threat 3215 | -7/Factory | Build established: Scavenger-Tank 3437 | -7/Factory | Discovered new exit (range 5) 3444 | -7/Factory | Identified exit to Lower Caves 3555 | -7/Factory | Found Powered Armor 3558 | -7/Factory | Found Powered Armor 3605 | -7/Factory | Entered Lower Caves 3993 | -7/Lower Caves | Learned Factory stockpile data 4498 | -7/Lower Caves | Discovered new exit (range 5) 4583 | -7/Lower Caves | Entered another Lower Caves area 4755 | -7/Lower Caves | Encountered a Warlord checkpoint 4779 | -7/Lower Caves | Learned 4 Factory zone layouts 5167 | -7/Lower Caves | Discovered new exit (range 6) 5177 | -7/Lower Caves | Entered Data Miner 5177 | -7/Data Miner | Discovered new exit (range 6) 5217 | -7/Data Miner | Met Data Miner 5252 | -7/Data Miner | Learned location of Section 7 (-2) 5252 | -7/Data Miner | Acquired the access code to Warlord's prototype stash 5284 | -7/Data Miner | Received God Mode back door access code from Data Miner 5328 | -7/Data Miner | Entered Proximity Caves 5334 | -6/Proximity Caves | Spotted B-75 Beast 5360 | -6/Proximity Caves | Attracted the attention of an 0b10 checkpoint 5557 | -6/Proximity Caves | Lost 10 parts (4n3u3w) 5970 | -6/Proximity Caves | Build established: Tank 6192 | -6/Proximity Caves | Learned Factory security intel 7619 | -6/Proximity Caves | Discovered new exit (range 10) 7739 | -6/Proximity Caves | Learned Factory security intel 7787 | -6/Proximity Caves | Entered Factory 7787 | -6/Factory | Evolved 2 slots: Propulsion x1, Utility x1 8144 | -6/Factory | Identified exit to Lower Caves 8144 | -6/Factory | Identified exit to Extension 8309 | -6/Factory | Build established: Assassin 9002 | -6/Factory | Garrison activated, responded to threat 9166 | -6/Factory | Garrison activated, responded to threat 9325 | -6/Factory | Build established: Scavenger-Skirmisher 9941 | -6/Factory | Entered Extension 10045 | -6/Extension | Rescued a captive Derelict 10420 | -6/Extension | Build established: Scavenger-Gunner 10528 | -6/Extension | Rescued A7 10701 | -6/Extension | Rescued a captive Derelict 10801 | -6/Extension | Rescued a captive Derelict 11312 | -6/Extension | Spotted B-75 Beast 11323 | -6/Extension | Destroyed B-75 Beast 11328 | -6/Extension | Spotted B-75 Beast 11355 | -6/Extension | Destroyed B-75 Beast 11373 | -6/Extension | Lost 6 allies 11466 | -6/Extension | Discovered new exit (range 3) 11855 | -6/Extension | Incoming investigation squad redirected 11897 | -6/Extension | Disrupted transfer network 11918 | -6/Extension | Discovered new exit (range 16) 11918 | -6/Extension | Discovered new exit (range 16) 12054 | -6/Extension | Rescued a captive Derelict 12067 | -6/Extension | Rescued a captive Derelict 12069 | -6/Extension | Rescued a captive Derelict 12171 | -6/Extension | Entered Cetus 12171 | -6/Cetus | Accompanied by 5 allies (A7) 12176 | -6/Cetus | Acquired a Cetus Manufacturing Module code from A7 12193 | -6/Cetus | Spotted Cetus Guard 12193 | -6/Cetus | Spotted Cetus Guard 12197 | -6/Cetus | Destroyed Cetus Guard 12198 | -6/Cetus | Spotted Cetus Guard 12201 | -6/Cetus | Allies destroyed Cetus Guard 12201 | -6/Cetus | Destroyed Cetus Guard 12211 | -6/Cetus | Destroyed Cetus Guard 12748 | -6/Cetus | Discovered new exit (range 15) 12817 | -6/Cetus | Spotted Cetus Guard 12818 | -6/Cetus | Spotted Cetus Guard 12822 | -6/Cetus | Spotted Cetus Guard 12823 | -6/Cetus | Spotted Cetus Guard 12829 | -6/Cetus | Allies destroyed Cetus Guard 12830 | -6/Cetus | Destroyed Cetus Guard 12833 | -6/Cetus | Destroyed Cetus Guard 12834 | -6/Cetus | Allies destroyed Cetus Guard 12850 | -6/Cetus | Discovered new exit (range 16) 12860 | -6/Cetus | Met Revision 17 12921 | -6/Cetus | Security sweep announced 13036 | -6/Cetus | Escorted A7 to Cetus Mainframe 13353 | -6/Cetus | System corruption reached 10% 13356 | -6/Cetus | Entered Factory 13356 | -5/Factory | Accompanied by 3 allies (A7) 13356 | -5/Factory | Evolved 2 slots: Propulsion x1, Utility x1 13361 | -5/Factory | Received a hacking code to weaken MAIN.C 13627 | -5/Factory | Build established: Scavenger-Tank 13874 | -5/Factory | Identified exit to DSF 14095 | -5/Factory | Discovered new exit (range 4) 14225 | -5/Factory | Discovered new exit (range 7) 14424 | -5/Factory | Entered another Factory area 14424 | -4/Factory | Evolved 2 slots: Utility x2 14438 | -4/Factory | Identified exit to DSF 14607 | -4/Factory | Repaired Centrium Heavy Treads 14855 | -4/Factory | Fabricated Exp. Targeting Computer? 15120 | -4/Factory | Discovered new exit (range 3) 15155 | -4/Factory | Entered Upper Caves 15239 | -4/Upper Caves | Learned Research interactive machine intel 15613 | -4/Upper Caves | Discovered new exit (range 14) 15662 | -4/Upper Caves | Build established: Scavenger-Gunner 15717 | -4/Upper Caves | Entered another Upper Caves area 15784 | -4/Upper Caves | Learned location of 1 exit from Research 15860 | -4/Upper Caves | Learned Research security intel 16151 | -4/Upper Caves | Spotted B-86 Titan 16179 | -4/Upper Caves | Destroyed B-86 Titan 16362 | -4/Upper Caves | Discovered new exit (range 13) 16426 | -4/Upper Caves | Entered Zhirov 16426 | -4/Zhirov | Discovered new exit (range 3) 16455 | -4/Zhirov | Met Zhirov 16511 | -4/Zhirov | Learned location of Quarantine (-2) 16511 | -4/Zhirov | Learned location of Testing (-3) 16511 | -4/Zhirov | Learned location of Command (-1) 16522 | -4/Zhirov | Zhirov requested help retrieving the SGEMP Prototype 16573 | -4/Zhirov | Found Alien Artifact 16574 | -4/Zhirov | Identified Integrated Dissipator 16574 | -4/Zhirov | Installed Integrated Dissipator, increased core heat dissipation (+20) 16607 | -4/Zhirov | Found Alien Artifact 16834 | -4/Zhirov | Entered Proximity Caves 17401 | -3/Proximity Caves | Attracted the attention of an 0b10 checkpoint 17627 | -3/Proximity Caves | Discovered new exit (range 5) 17635 | -3/Proximity Caves | Entered Research 17635 | -3/Research | Evolved 2 slots: Utility x2 17636 | -3/Research | Identified exit to Testing 17638 | -3/Research | Loaded intel: 46 interactive machine locations 17835 | -3/Research | Revision forces began assault on 0b10 17889 | -3/Research | Met up with Revision 17++ 17930 | -3/Research | Identified exit to Armory 18101 | -3/Research | Discovered new exit (range 13) 18123 | -3/Research | Found Prototype Processor 18123 | -3/Research | Identified Spectral Analyzer 18335 | -3/Research | Research terminal network offline 18779 | -3/Research | Found Prototype Processor 18779 | -3/Research | Identified Exp. Terrain Scan Processor 18952 | -3/Research | Spotted Striker 18954 | -3/Research | Destroyed Striker 19070 | -3/Research | Entered Armory 20270 | -3/Armory | Energy Cycler disabled 20688 | -3/Armory | Spotted B-86 Titan 20694 | -3/Armory | Destroyed B-86 Titan 20966 | -3/Armory | Build established: Gunner 21070 | -3/Armory | First assault squad dispatched 21187 | -3/Armory | Fabricated Exp. Targeting Computer? 21335 | -3/Armory | Identified Transdimensional Reconstructor 21335 | -3/Armory | Warped through subspace to slip node 21335 | -3/Armory | Discovered new exit (range 1) 21340 | -3/Armory | Incoming assault squad redirected 21469 | -3/Armory | Entered Lab 21469 | -3/Lab | Discovered new exit (range 9) 21493 | -3/Lab | Unable to decrypt terminal 21493 | -3/Lab | Opened the door to a hidden lab 21494 | -3/Lab | Gained access to the hidden lab's interior 21495 | -3/Lab | Detected by scanners 21504 | -3/Lab | Confronted by A5 21525 | -3/Lab | Destroyed A5 21533 | -3/Lab | Unable to decrypt terminal 21594 | -3/Lab | Found Alien Artifact 21594 | -3/Lab | Identified Integrated Mediator 21594 | -3/Lab | Installed Integrated Mediator, increased core attachment efficiency 21621 | -3/Lab | Found Alien Artifact 21621 | -3/Lab | Identified Core Expander 21621 | -3/Lab | Installed Core Expander, added new Propulsion slot 21674 | -3/Lab | Found Transdimensional Reconstructor 21723 | -3/Lab | Found Prototype Protection 21723 | -3/Lab | Identified Hvy. Regenerative Plating 21728 | -3/Lab | Found Prototype Energy Gun 21728 | -3/Lab | Identified Hyp. EM Gauss Rifle 21733 | -3/Lab | Found Prototype Energy Cannon 21733 | -3/Lab | Identified Warp Cannon 21762 | -3/Lab | Found Prototype Special Weapon 21762 | -3/Lab | Identified Gui. Remote Datajack 21987 | -3/Lab | Entered Research 21987 | -2/Research | Evolved 2 slots: Propulsion x1, Utility x1 22285 | -2/Research | Found Quantum Capacitor 23181 | -2/Research | Garrison activated, responded to threat 23229 | -2/Research | Warped through subspace 23243 | -2/Research | Destroyed 9 combat bots 23244 | -2/Research | Lost 3 parts (1p2u) 23293 | -2/Research | Destroyed 7 combat bots 23386 | -2/Research | Found Gamma Bomb Array 23442 | -2/Research | Found Prototype Launcher 23442 | -2/Research | Identified Hellfire Missile Launcher 23487 | -2/Research | First assault squad dispatched 23708 | -2/Research | Intercept squad dispatched 23741 | -2/Research | Spotted Tracker 23742 | -2/Research | Spotted Tracker 23745 | -2/Research | Destroyed Tracker 23764 | -2/Research | Spotted Combat Programmer 23775 | -2/Research | Destroyed Combat Programmer 23784 | -2/Research | Spotted Combat Programmer 23801 | -2/Research | Destroyed Combat Programmer 23846 | -2/Research | Destroyed Tracker 24128 | -2/Research | Destroyed 9 combat bots 24338 | -2/Research | Spotted B-90 Cyclops 24450 | -2/Research | Destroyed 8 combat bots 24754 | -2/Research | Discovered new exit (range 11) 25243 | -2/Research | Spotted B-90 Cyclops 25400 | -2/Research | Unchained authorized (BL-1NK) 25414 | -2/Research | High security lockdown imminent 25469 | -2/Research | Destroyed 7 combat bots 25494 | -2/Research | High security lockdown engaged 25581 | -2/Research | Intercept squad dispatched 25596 | -2/Research | Spotted Tracker 25597 | -2/Research | Spotted Tracker 25601 | -2/Research | Spotted Combat Programmer 25605 | -2/Research | Destroyed Tracker 25613 | -2/Research | Destroyed Tracker 25617 | -2/Research | Garrison activated, responded to threat 25620 | -2/Research | Destroyed Combat Programmer 25629 | -2/Research | Spotted Combat Programmer 25654 | -2/Research | Destroyed Combat Programmer 25675 | -2/Research | Destroyed 8 combat bots 25719 | -2/Research | Scanned by Researcher 25728 | -2/Research | Spotted Investigator 25729 | -2/Research | Destroyed 10 combat bots 25741 | -2/Research | System corruption reached 10% 25793 | -2/Research | Destroyed Investigator 25797 | -2/Research | System corruption reached 30% 25801 | -2/Research | Released all parts (9) 25806 | -2/Research | Core integrity fell below 50% 25814 | -2/Research | Core integrity fell below 20% 25832 | -2/Research | Destroyed by S-43 Plague with Heavy Machine Gun Last Messages --------------- 25801_ Released Exp. Targeting Computer. 25801_ Released Adv. Target Analyzer. 25801_ Released Imp. Thermal Shield. 25801_ Released Quantum Capacitor. 25801_ Released Imp. Dynamic Insulation System. 25804_ P-80 Master resets G-73 Enforcer, system corruption cleaned. 25806_ Slug penetrates P-80 Master. 25806_ Penetrated by Slug. 25806_ Critical hit (Burn: +37). 25809_ Slug penetrates G-73 Enforcer. 25811_ C-45 Heavy ARC bursts open, deploying its payload. 25811_ G-73 Enforcer unfolds itself. 25811_ B-74 Champion unfolds itself. 25811_ G-73 Enforcer unfolds itself. 25811_ I-47 Archangel unfolds itself. 25814_ Acquired Cesium-ion Thruster. 25814_ Cesium-ion Thruster destroyed. 25816_ Acquired 7 matter. 25819_ System corrupted: Component data lost. 25832_ Acquired Cmb. Linear Gravjet. Map ----- +----------------------------------------------------+ | =[%=! # # % %"" # # | | #####% ######### # # #"[ # # | | # % %% % ###### # | | # =%% % %= #?????## | | ## % [ #??????? | | """ #* = % #??????? | | """ ## ! ######## #####+ /#??????? | | """ # #??????# #???? ???????? | | ######+### #??????# #????? ?????? | | #??????##????? ""?????? | | ########????? """ ??? | | # #????Y """ ??? | | "" # #???? ???? | | """ # #????Y ????? | | """ "" p # !#???" """????? | | """ ""F" # = ????"Y """????? | | """ """" p # ????? Y """ #?? | | """ ##+####### #?? | | p + #?? | | ss #########??????? | | """ # #??????? | | """ #######+##### + #??????? | | """ #???????????# # !#??????? | | ?? #???????????# #########??????? | | ?? #???????????# ###????????????? | | ????????????????# ^ @ #????????????? | | ????????????????# #????????????? | | ????????????????+ +????????????? | | ????????????????# ! #????????????? | | ??????????????????# #????????????? | | ???????????????????+ #########????????????? | | ???????????????????#+?????????????????????? | | ??????????????????????????????????????????? | | ??????????????????????????????????????????? | | ??????????????????????????????????????????? | | ??????????????????????????????????????????? | | ??????????????????????????????????????????? | | ??????????????????????????????????????????? | | ??????????????????????????????????????????? | | ??????????????????????????????????????????? | | ??????????????????????????????????????????? | | ??????????????????????????????????????????? | | ??????????????????????????????????????????? | | ??????????????????????????????????????????? | | ??????????????????????????????????????????? | | ??????????????????????????????????????????? | | ??????????????????????????????????????????? | | ??????????????????????????????????????????? | | ??????????????????????????????????????????? | | ??????????????????????????????????????????? | +----------------------------------------------------+ Best States ------------- Heat Dissipation 113 Energy Generation 25 Energy Capacity 350 Matter Stores 300 Matter Capacity 600 Sight Range 22 Terrain Scan Range 24 Terrain Scan Density 1010 Jamming Range 14 Additional Mass Support 16 Base Temperature (-) 200 EM Shielding 3 Armor Coverage 1650 Resistance: TH 25 Resistance: EM 20 Propulsion Shielding 66 Utility Shielding 90 Weapon Shielding 66 Evasion (%) 55 Targeting Accuracy 38 Target Analysis 8 Recoil Reduction 8 Matter Filtering 50 Authchip Count 1 Trap Extractor Capacity 8 Item Schematics ----------------- Combat Drone Bay | -7/Data Miner | Free Lgt. Regenerative Plating | -7/Data Miner | Free Cld. Aerolev Unit | -7/Data Miner | Free Exp. Targeting Computer | -7/Data Miner | Free Prc. Rocket Launcher | -7/Data Miner | Free Arm. Medium Treads | -7/Data Miner | Free Mni. Drone Bay | -7/Data Miner | Free Imp. Plasma Cutter | -7/Data Miner | Free Point Defense System | -7/Data Miner | Free Thunder Leg | -7/Data Miner | Free Imp. Antigrav System | -7/Data Miner | Free Imp. Heavy Treads | -7/Data Miner | Free Assault Drone Bay | -4/Zhirov | Free Exp. Heat Sink | -4/Zhirov | Free Exp. Optical Array | -4/Zhirov | Free Imp. Arc Thrower | -4/Zhirov | Free Robot Schematics ------------------ L-41 Fighter | -7/Data Miner | Free R-10 Processor | -7/Data Miner | Free M-28 Smith | -7/Data Miner | Free S-27 Virus | -7/Data Miner | Free G-50 Soldier | -7/Data Miner | Free Fabricated ------------ Exp. Targeting Computer | x1 | -4/Factory Exp. Targeting Computer | x1 | -3/Armory | Authchip Repaired ---------- Flexi-carbon Leg | 72% | -7/Factory Centrium Heavy Treads | 70% | -4/Factory Studied --------- None Alien Tech Used ----------------- Integrated Dissipator Transdimensional Reconstructor Integrated Mediator Core Expander Achievements -------------- Bumper Bots Coming In Hot Construction Begets Destruction Deductive Reasoning Explosive Keycard For Emergencies Only Immobile And Lovin' It Into The Breach Official Business Revolutionary Research Sixth Sense Tank Life The Better Part Of Valor Throw Away The Key Challenges ------------ None Game ------ Seed PitchforkContainmentStorage Manual? 0 Play Time 09:13:02 Cumulative 287.1 hours Start 2026.07.13 @ 11:39:33 End 2026.07.25 @ 14:08:40 Sessions 29 Manual Loads 0 Difficulty Rogue Special Mode None Game No. 107 Rogue 107 Adventurer 0 Explorer 0 Win Type - Total 3 Types 1/0/1/0/0/0/1/0/0/0 Lore% 39 Gallery% 60 Achievement% 41 Wizard Run 0 Options --------- Layout 0 ASCII 1 Keyboard 1 Movement Numpad Keybinds 0 Fullscreen 1 Font 36/Smallcaps Map View 76x50 Zoom Use 0% Tactical HUD 1 Map Filters NONE Filters NONE Steam 1 RUN: 6f26c10f-7a52-4333-aa4b-2e2e82876363